[Event "WTCC-50 2018"]
[Site "Radebeul"]
[Date "2018.07.08"]
[Round "2"]
[White "Pruefer, Friedbert"]
[Black "Benjamin, Joel"]
[Result "1/2-1/2"]
[ECO "A05"]
[WhiteElo "2144"]
[BlackElo "2544"]
[Annotator "ChessBase"]
[PlyCount "67"]
[EventDate "2018.07.07"]
[EventType "team-tourn"]
[EventCountry "GER"]
[SourceTitle "playchess.com"]
[Source "ChessBase"]
[SourceQuality "1"]
[TimeControl "40/5400+30:1800+30"]

1. Nf3 {[%emt 0:00:00]} Nf6 {[%emt 0:00:09]} 2. e3 {[%emt 0:00:00]} g6 {[%emt 0:01:46]} 3. b3 {[%emt 0:00:32]} Bg7 {[%emt 0:00:17]} 4. Bb2 {[%emt 0:00:03]} O-O {[%emt 0:01:35]} 5. c4 {[%emt 0:03:13]} c6 {[%emt 0:09:20]} 6. Be2 {[%emt 0:07:31]} d6 {[%emt 0:04:52]} 7. d4 {[%emt 0:02:01]} a6 {[%emt 0:00:35]} 8. O-O {[%emt 0:03:07]} b5 {[%emt 0:01:02]} 9. Nbd2 {[%emt 0:02:17]} Nbd7 {[%emt 0:01:45]} 10. a4 {[%emt 0:10:45]} bxc4 {[%emt 0:04:21]} 11. Nxc4 {[%emt 0:01:39]} a5 {[%emt 0:02:38]} 12. Rc1 {[%emt 0:04:27]} Bb7 {[%emt 0:05:23]} 13. Ne1 {[%emt 0:03:50]} c5 {[%emt 0:12:13]} 14. Nd3 {[%emt 0:07:04]} cxd4 {[%emt 0:02:33]} 15. Bxd4 {[%emt 0:01:51]} Ne4 {[%emt 0:00:51]} 16. Bxg7 {[%emt 0:02:00]} Kxg7 {[%emt 0:00:03]} 17. Nf4 {[%emt 0:03:13]} Nef6 {[%emt 0:03:17]} 18. Nd3 {[%emt 0:02:51]} Qb8 {[%emt 0:04:08]} 19. Qd2 {[%emt 0:02:01]} Ne4 {[%emt 0:06:49]} 20. Qb2+ {[%emt 0:01:51]} Kg8 {[%emt 0:00:12]} 21. Rfd1 {[%emt 0:08:22]} Rd8 {[%emt 0:08:12]} 22. b4 {[%emt 0:04:05]} axb4 {[%emt 0:01:26]} 23. Qxb4 {[%emt 0:00:18]} Ba6 {[%emt 0:10:26]} 24. a5 {[%emt 0:03:04]} Nec5 {[%emt 0:01:40]} 25. Nb6 {[%emt 0:05:43]} Ra7 {[%emt 0:02:07]} 26. Nxc5 {[%emt 0:06:03]} Nxc5 {[%emt 0:03:26]} 27. Bxa6 {[%emt 0:01:20]} Rxa6 {[%emt 0:00:13]} 28. Ra1 {[%emt 0:03:50]} Rd7 {[%emt 0:03:18]} 29. Rdb1 {[%emt 0:01:13]} Rda7 {[%emt 0:00:43]} 30. Qc3 {[%emt 0:00:54]} Qd8 {[%emt 0:01:20]} 31. Rb5 {[%emt 0:00:38]} Qe8 {[%emt 0:00:44]} 32. Rab1 {[%emt 0:00:24]} Rb7 {[%emt 0:01:50]} 33. Qc4 {[%emt 0:01:29]} Raa7 {[%emt 0:01:00]} 34. h4 1/2-1/2

[Event "WTCC-50 2018"]
[Site "Radebeul"]
[Date "2018.07.08"]
[Round "2"]
[White "Frostick, Clive A"]
[Black "Hebden, Mark L"]
[Result "1/2-1/2"]
[ECO "A46"]
[WhiteElo "2133"]
[BlackElo "2423"]
[Annotator "NA"]
[PlyCount "100"]
[EventDate "2018.07.07"]
[EventType "team-tourn"]
[EventCountry "GER"]
[SourceTitle "playchess.com"]
[Source "ChessBase"]
[SourceQuality "1"]
[TimeControl "40/5400+30:1800+30"]

1. d4 {[%emt 0:00:00]} Nf6 {[%emt 0:00:00]} 2. Nf3 {[%emt 0:00:00]} c5 {[%emt 0:01:46]} 3. e3 {[%emt 0:02:07]} g6 {[%emt 0:01:23]} 4. dxc5 {[%emt 0:06:21]} Qa5+ {[%emt 0:03:01]} 5. Nbd2 {[%emt 0:00:56]} Bg7 {[%emt 0:01:22]} 6. a3 {[%emt 0:10:37]} Qxc5 {[%emt 0:01:02]} 7. b4 {[%emt 0:00:40]} Qc7 {[%emt 0:00:20]} 8. Bb2 {[%emt 0:00:31]} O-O {[%emt 0:00:21]} 9. c4 {[%emt 0:05:29]} b6 {[%emt 0:01:47]} 10. Be2 {[%emt 0:05:00]} Bb7 {[%emt 0:00:27]} 11. O-O {[%emt 0:00:56]} d6 {[%emt 0:00:42]} 12. Rc1 {[%emt 0:03:45]} Nbd7 {[%emt 0:00:35]} 13. Qb3 {[%emt 0:02:40]} Rac8 {[%emt 0:00:42]} 14. Rc2 {[%emt 0:05:18] A48: 1 d4 Nf6 2 Nf3 g6: Torre, London and Colle Systems} (14. Rfd1 Qb8 15. Nb1 Ne4 16. Bxg7 Kxg7 17. Nfd2 Ndf6 18. Nxe4 Bxe4 19. Nc3 Bc6 20. Bf1 Rc7 21. f3 Qc8 22. e4 {0-1 (65) Aleksandrov,A (2589)-McShane,L (2640) Katowice 2017}) 14... Qb8 {[%emt 0:01:04]} 15. Rfc1 {[%emt 0:03:44] LiveBook: 5 Games} Rc7 $146 {[%emt 0:00:36]} ({Predecessor:} 15... Qa8 16. Bf1 Rc7 17. Qa2 Ne4 18. Bxg7 Kxg7 19. Nd4 a6 20. Nxe4 Bxe4 21. Rc3 Rfc8 {1-0 (57) Mateuta,G (2468)-Valeanu,E (2361) Predeal 2006}) 16. Bf1 {[%emt 0:07:24]} Rfc8 {[%emt 0:00:49]} 17. h3 {[%emt 0:02:43]} Ne4 {[%emt 0:04:55]} 18. Bxg7 {[%emt 0:01:57]} Kxg7 {[%emt 0:01:33]} 19. Nd4 {[%emt 0:12:33]} Nxd2 {[%emt 0:04:42]} 20. Rxd2 {[%emt 0:00:09]} a6 {[%emt 0:00:40]} 21. Rdc2 {[%emt 0:03:50]} Kg8 {[%emt 0:07:39]} 22. Rc3 {[%emt 0:05:00]} Nf6 {[%emt 0:05:24]} 23. Ne2 {[%emt 0:04:15]} h5 {[%emt 0:05:00]} 24. Qd1 {[%emt 0:02:18]} Bc6 {[%emt 0:10:01]} 25. Rd3 {[%emt 0:09:32]} a5 {[%emt 0:11:05]} 26. Nc3 {[%emt 0:01:49]} axb4 {[%emt 0:00:23]} 27. axb4 {[%emt 0:00:05]} Ne4 {[%emt 0:02:45]} 28. Nxe4 {[%emt 0:00:26]} Bxe4 {[%emt 0:00:02]} 29. Rdc3 {[%emt 0:00:18]} Bf5 {[%emt 0:02:36]} 30. Qd4 {[%emt 0:00:41]} Rc6 {[%emt 0:01:04]} 31. Be2 {[%emt 0:03:11]} e5 {[%emt 0:00:35]} 32. Qd5 {[%emt 0:00:51]} Be6 {[%emt 0:02:29]} 33. Qb5 {[%emt 0:00:16]} Qa7 {[%emt 0:04:32]} 34. Kh2 {[%emt 0:00:55]} Kg7 {[%emt 0:03:07]} 35. Bf3 {[%emt 0:00:30]} R6c7 {[%emt 0:00:08]} 36. R3c2 {[%emt 0:00:22]} h4 {[%emt 0:06:07]} 37. Be2 {[%emt 0:00:14]} d5 {[%emt 0:04:05]} 38. c5 {[%emt 0:00:45]} (38. Rd1 $11) 38... bxc5 {[%emt 0:00:20]} 39. Rxc5 {[%emt 0:00:26]} Rxc5 {[%emt 0:00:17]} (39... Rb7 $5 {[%cal Rb7b5]} 40. Qd3 Rxc5 41. bxc5 Qa2 $11) 40. bxc5 {[%emt 0:00:42]} Qa3 {[%emt 0:01:13]} 41. Rc2 {[%emt 0:03:01]} d4 {[%emt 0:08:14]} 42. c6 {[%emt 0:07:49]} Qd6 {[%emt 0:03:56]} 43. Qc5 {[%emt 0:02:50]} Qc7 {[%emt 0:04:02]} 44. exd4 {[%emt 0:03:21]} exd4+ {[%emt 0:00:21]} 45. Kg1 {[%emt 0:00:05]} Rd8 {[%emt 0:04:54]} 46. Bf3 {[%emt 0:03:10]} d3 {[%emt 0:03:34]} 47. Rd2 {[%emt 0:00:40]} Bf5 {[%emt 0:00:24]} 48. Qc3+ {[%emt 0:01:24]} Kg8 $11 {[%emt 0:05:54]} 49. Bg4 {[%emt 0:02:07]} Rb8 {[%emt 0:10:52]} 50. Rd1 {[%emt 0:00:36]} Bxg4 {[%emt 0:02:00]} 1/2-1/2

[Event "WTCC-50 2018"]
[Site "Radebeul"]
[Date "2018.07.08"]
[Round "2"]
[White "Tolhuizen, Ludo"]
[Black "Volke, Karsten"]
[Result "0-1"]
[ECO "B20"]
[WhiteElo "2118"]
[BlackElo "2474"]
[Annotator "ChessBase"]
[PlyCount "76"]
[EventDate "2018.07.07"]
[EventType "team-tourn"]
[EventCountry "GER"]
[SourceTitle "playchess.com"]
[Source "ChessBase"]
[SourceQuality "1"]
[TimeControl "40/5400+30:1800+30"]

1. e4 {[%emt 0:00:00]} c5 {[%emt 0:00:00]} 2. d3 {[%emt 0:00:00]} Nc6 {[%emt 0:00:00]} 3. f4 {[%emt 0:00:07]} d5 {[%emt 0:02:24]} 4. Nc3 {[%emt 0:05:06]} d4 {[%emt 0:05:07]} 5. Nce2 {[%emt 0:00:34]} e5 {[%emt 0:00:06]} 6. Nf3 {[%emt 0:05:29]} Bd6 {[%emt 0:00:26]} 7. g3 {[%emt 0:00:54]} h5 {[%emt 0:08:24]} 8. h3 {[%emt 0:07:55]} Qc7 {[%emt 0:08:06]} 9. f5 {[%emt 0:04:21]} Nf6 {[%emt 0:05:04]} 10. Bg2 {[%emt 0:03:51]} Bd7 {[%emt 0:01:47]} 11. c4 {[%emt 0:06:03]} dxc3 {[%emt 0:08:39]} 12. Nxc3 {[%emt 0:01:59]} Nd4 {[%emt 0:00:06]} 13. O-O {[%emt 0:01:48]} Bc6 {[%emt 0:01:00]} 14. Bg5 {[%emt 0:08:39]} Nh7 {[%emt 0:10:28]} 15. Be3 {[%emt 0:01:50]} O-O-O {[%emt 0:02:37]} 16. Rc1 {[%emt 0:00:52]} Kb8 {[%emt 0:00:12]} 17. Bf2 {[%emt 0:06:52]} Be7 {[%emt 0:06:24]} 18. Nxd4 {[%emt 0:13:19]} exd4 {[%emt 0:01:49]} 19. Ne2 {[%emt 0:03:02]} Qa5 {[%emt 0:00:33]} 20. a3 {[%emt 0:06:44]} Ba4 {[%emt 0:12:43]} 21. b3 {[%emt 0:02:07]} Bb5 {[%emt 0:00:10]} 22. a4 {[%emt 0:02:32]} Ba6 {[%emt 0:02:27]} 23. Nf4 {[%emt 0:03:33]} Bg5 {[%emt 0:02:29]} 24. Be1 {[%emt 0:00:29]} Qb6 {[%emt 0:00:53]} 25. Bd2 {[%emt 0:00:25]} h4 {[%emt 0:06:26]} 26. gxh4 {[%emt 0:03:08]} Bh6 {[%emt 0:00:09]} 27. Qc2 {[%emt 0:03:05]} Rhe8 {[%emt 0:03:34]} 28. Rfe1 {[%emt 0:04:13]} Qd6 {[%emt 0:02:02]} 29. Nd5 {[%emt 0:01:11]} Bxd2 {[%emt 0:01:49]} 30. Qxd2 {[%emt 0:00:03]} Nf6 {[%emt 0:00:07]} 31. Nxf6 {[%emt 0:02:47]} gxf6 {[%emt 0:00:10]} 32. Bf1 {[%emt 0:00:21]} Rg8+ {[%emt 0:00:47]} 33. Kh1 {[%emt 0:00:06]} Rg3 {[%emt 0:04:38]} 34. Qh2 {[%emt 0:00:09]} b6 {[%emt 0:01:49]} 35. Rcd1 {[%emt 0:00:35]} Rh8 {[%emt 0:01:31]} 36. e5 {[%emt 0:00:50]} Bb7+ {[%emt 0:00:15]} 37. Re4 {[%emt 0:00:10]} Bxe4+ {[%emt 0:00:20]} 38. dxe4 {[%emt 0:00:04]} Qxe5 {[%emt 0:00:05]} 0-1

[Event "WTCC-50 2018"]
[Site "Radebeul"]
[Date "2018.07.08"]
[Round "2"]
[White "Rudolf, Matthias"]
[Black "Chan, Peng Kong"]
[Result "0-1"]
[ECO "B40"]
[WhiteElo "2102"]
[BlackElo "2158"]
[Annotator "NA"]
[PlyCount "62"]
[EventDate "2018.07.07"]
[EventType "team-tourn"]
[EventCountry "GER"]
[SourceTitle "playchess.com"]
[Source "ChessBase"]
[SourceQuality "1"]
[TimeControl "40/5400+30:1800+30"]

1. e4 {[%emt 0:00:00]} c5 {[%emt 0:00:06]} 2. Nf3 {[%emt 0:00:00]} e6 {[%emt 0:00:07]} 3. b3 {[%emt 0:00:00]} b6 {[%emt 0:00:36]} 4. Bb2 {[%emt 0:02:49]} Bb7 {[%emt 0:00:11]} 5. Qe2 {[%emt 0:00:11]} Nc6 {[%emt 0:01:33] LiveBook: 46 Partien} 6. d4 {[%emt 0:01:51]} cxd4 {[%emt 0:01:56]} 7. Nxd4 {[%emt 0:00:14]} Bb4+ {[%emt 0:01:17]} 8. Nd2 {[%emt 0:04:10]} Nf6 {[%emt 0:02:11]} 9. Nxc6 {[%emt 0:11:38]} Bxc6 {[%emt 0:01:35]} 10. c3 {[%emt 0:02:56]} Be7 {[%emt 0:03:36]} 11. e5 {[%emt 0:03:55]} Nd5 {[%emt 0:01:08]} 12. Qg4 {[%emt 0:02:52]} O-O {[%emt 0:00:33]} 13. Bd3 $17 {[%emt 0:05:12]} f5 {[%emt 0:00:55]} 14. exf6 {[%emt 0:04:41]} Nxf6 {[%emt 0:01:57]} 15. Qh3 {[%emt 0:01:00]} g6 {[%emt 0:05:40]} 16. O-O-O {[%emt 0:11:39]} Nh5 {[%emt 0:06:35]} 17. Be4 {[%emt 0:07:31]} Nf4 {[%emt 0:10:14]} 18. Qg4 {[%emt 0:06:12]} Rc8 {[%emt 0:21:46]} 19. Bxc6 {[%emt 0:08:12]} Nd3+ {[%emt 0:01:21]} 20. Kb1 {[%emt 0:04:49]} Nxf2 {[%emt 0:01:05]} 21. Qd4 {[%emt 0:02:55]} Rxc6 {[%emt 0:05:23]} 22. Ne4 {[%emt 0:05:45]} Nxe4 {[%emt 0:11:27]} 23. Qxe4 {[%emt 0:00:16]} d5 {[%emt 0:00:25]} 24. Qe2 {[%emt 0:03:48]} Bf6 {[%emt 0:04:44]} 25. Qg4 {[%emt 0:03:49]} Qd6 {[%emt 0:02:37]} 26. Rhf1 {[%emt 0:04:08]} Bg7 {[%emt 0:03:01]} 27. h4 {[%emt 0:00:38]} Rxf1 {[%emt 0:03:33]} 28. Rxf1 {[%emt 0:00:02]} Qe5 {[%emt 0:00:20]} 29. Qa4 {[%emt 0:01:31]} Qe2 {[%emt 0:02:26]} 30. Qf4 {[%emt 0:01:06]} Rc8 {[%emt 0:00:58]} 31. Ba3 {[%emt 0:00:34]} Qd3+ {[%emt 0:00:18]} 0-1

[Event "WTCC-50 2018"]
[Site "Radebeul"]
[Date "2018.07.08"]
[Round "2"]
[White "Thoma, Wilhelm"]
[Black "Druckenthaner, Andreas"]
[Result "0-1"]
[ECO "A04"]
[WhiteElo "2079"]
[BlackElo "2296"]
[Annotator "NA"]
[PlyCount "80"]
[EventDate "2018.07.07"]
[EventType "team-tourn"]
[EventCountry "GER"]
[SourceTitle "playchess.com"]
[Source "ChessBase"]
[SourceQuality "1"]
[TimeControl "40/5400+30:1800+30"]

1. Nf3 {[%emt 0:00:00]} Nc6 {[%emt 0:00:00]} 2. d4 {[%emt 0:00:09]} d6 {[%emt 0:00:00]} 3. c4 {[%emt 0:00:51]} Nf6 {[%emt 0:00:25]} 4. Nc3 {[%emt 0:00:23]} g6 {[%emt 0:00:17]} 5. e4 {[%emt 0:00:28]} Bg7 {[%emt 0:00:09]} 6. Be2 {[%emt 0:00:52]} O-O {[%emt 0:00:14]} 7. O-O {[%emt 0:03:31]} Bg4 {[%emt 0:00:20] [#]} 8. Be3 {[%emt 0:01:20] LiveBook: 74 Games} (8. d5 $1 $16 {[%cal Rd5c6]} Bxf3 9. Bxf3 (9. gxf3 Nb8 $14)) 8... Nd7 {[%emt 0:03:41]} 9. Qd2 {[%emt 0:07:26]} a6 {[%emt 0:11:03]} 10. Rfd1 {[%emt 0:05:02]} Re8 {[%emt 0:05:05]} 11. Rab1 {[%emt 0:08:48]} e5 {[%emt 0:05:25]} 12. d5 {[%emt 0:02:13]} Ne7 {[%emt 0:01:13]} 13. Ne1 {[%emt 0:01:52]} Bxe2 {[%emt 0:00:44]} 14. Qxe2 {[%emt 0:00:23]} f5 {[%emt 0:08:20]} 15. f3 {[%emt 0:00:34]} Nf6 $16 {[%emt 0:01:04]} 16. Nd3 {[%emt 0:00:37]} Qd7 {[%emt 0:04:18]} 17. c5 {[%emt 0:06:15]} f4 {[%emt 0:04:57]} 18. Bf2 {[%emt 0:00:37]} g5 {[%emt 0:00:10]} 19. b4 {[%emt 0:06:40]} g4 {[%emt 0:04:19]} 20. Nb2 {[%emt 0:01:05]} Ng6 {[%emt 0:04:08]} 21. Be1 {[%emt 0:03:33]} Bf8 {[%emt 0:04:39]} 22. Nca4 {[%emt 0:03:54]} a5 {[%emt 0:16:16]} 23. cxd6 {[%emt 0:05:28]} axb4 {[%emt 0:01:26]} 24. dxc7 {[%emt 0:05:50]} gxf3 {[%emt 0:05:02]} 25. gxf3 {[%emt 0:00:24]} Qxc7 {[%emt 0:01:03]} 26. Rdc1 {[%emt 0:01:46]} Qg7 {[%emt 0:01:35]} 27. Kh1 {[%emt 0:03:21]} Kh8 {[%emt 0:02:20]} 28. Rc2 {[%emt 0:05:02]} Ra6 {[%emt 0:01:39]} 29. Rbc1 {[%emt 0:09:52]} Nh5 {[%emt 0:04:09]} 30. Rc7 {[%emt 0:07:37]} Re7 {[%emt 0:02:00]} 31. Rxe7 {[%emt 0:01:12]} Qxe7 {[%emt 0:00:17]} 32. Qc4 {[%emt 0:03:39]} Ra8 {[%emt 0:02:14]} 33. Nb6 {[%emt 0:01:18]} Ra6 {[%emt 0:00:55]} 34. Nc8 {[%emt 0:01:43]} Qd7 {[%emt 0:01:19]} 35. Kg2 {[%emt 0:01:26]} Qg7 {[%emt 0:01:22]} 36. Kf1 {[%emt 0:00:25]} Qd7 {[%emt 0:00:15]} 37. Rc2 {[%emt 0:00:57]} Qh3+ {[%emt 0:00:58]} 38. Ke2 {[%emt 0:01:08]} Qxh2+ {[%emt 0:00:58]} 39. Kd1 {[%emt 0:00:03]} Qh3 {[%emt 0:00:21]} 40. Qb3 {[%emt 0:00:22]} Ra3 {[%emt 0:00:51]} 0-1

[Event "WTCC-50 2018"]
[Site "Radebeul"]
[Date "2018.07.08"]
[Round "2"]
[White "Glasewald, Stefan"]
[Black "Boehm, Martin"]
[Result "0-1"]
[ECO "B07"]
[WhiteElo "2068"]
[BlackElo "2172"]
[Annotator "NA"]
[PlyCount "59"]
[EventDate "2018.07.07"]
[EventType "team-tourn"]
[EventCountry "GER"]
[SourceTitle "playchess.com"]
[Source "ChessBase"]
[SourceQuality "1"]
[TimeControl "40/5400+30:1800+30"]

1. d4 {[%emt 0:00:00]} Nf6 {[%emt 0:00:14]} 2. Nc3 {[%emt 0:00:16]} g6 {[%emt 0:06:47]} 3. e4 {[%emt 0:00:33]} d6 {[%emt 0:00:07]} 4. Be2 {[%emt 0:00:34]} Bg7 {[%emt 0:00:11]} 5. Be3 {[%emt 0:00:18]} c6 {[%emt 0:01:32]} 6. f3 {[%emt 0:06:33]} O-O {[%emt 0:06:46]} 7. Qd2 {[%emt 0:02:01]} e5 {[%emt 0:02:00]} 8. dxe5 {[%emt 0:06:49]} dxe5 {[%emt 0:00:31]} 9. Qxd8 {[%emt 0:02:17]} Rxd8 {[%emt 0:00:05]} 10. g4 {[%emt 0:03:32]} Be6 {[%emt 0:07:44]} 11. Nh3 {[%emt 0:02:56]} h6 {[%emt 0:01:56]} 12. Nf2 {[%emt 0:01:00]} Nbd7 {[%emt 0:09:07]} 13. O-O {[%emt 0:05:51]} Bf8 {[%emt 0:06:24]} 14. a3 {[%emt 0:03:15]} h5 {[%emt 0:00:13]} 15. h3 {[%emt 0:01:46]} hxg4 $11 {[%emt 0:03:41]} 16. hxg4 {[%emt 0:00:31]} b5 {[%emt 0:02:15]} 17. Nd3 {[%emt 0:07:47]} a5 {[%emt 0:03:24]} 18. b3 {[%emt 0:09:16]} Rdc8 {[%emt 0:03:08]} 19. Kg2 {[%emt 0:02:30]} Rab8 {[%emt 0:02:25]} 20. Kg3 {[%emt 0:05:49]} c5 {[%emt 0:02:28]} 21. f4 {[%emt 0:01:25]} c4 {[%emt 0:00:41]} 22. Nxe5 {[%emt 0:01:16]} Nxe5 {[%emt 0:01:16]} 23. fxe5 {[%emt 0:00:38]} cxb3 {[%emt 0:00:28]} 24. exf6 {[%emt 0:07:54]} Rxc3 {[%emt 0:00:18]} 25. Rf3 {[%emt 0:01:15]} b2 {[%emt 0:09:44]} 26. Rb1 {[%emt 0:03:30]} Bxa3 {[%emt 0:00:15]} 27. Bd4 {[%emt 0:00:19]} Rxf3+ {[%emt 0:02:55]} 28. Kxf3 {[%emt 0:00:19]} Ba2 {[%emt 0:00:11]} 29. Rxb2 {[%emt 0:00:09]} Bxb2 {[%emt 0:00:05]} 30. Bxb2 {[%emt 0:00:08]} 0-1

[Event "WTCC-50 2018"]
[Site "Radebeul"]
[Date "2018.07.08"]
[Round "2"]
[White "Heyme, Sibylle"]
[Black "Wolf, Volker"]
[Result "0-1"]
[ECO "A37"]
[WhiteElo "2037"]
[BlackElo "2323"]
[Annotator "NA"]
[PlyCount "74"]
[EventDate "2018.07.07"]
[EventType "team-tourn"]
[EventCountry "GER"]
[SourceTitle "playchess.com"]
[Source "ChessBase"]
[SourceQuality "1"]
[TimeControl "40/5400+30:1800+30"]

1. c4 {[%emt 0:00:00]} g6 {[%emt 0:00:08]} 2. Nc3 {[%emt 0:00:03]} Bg7 {[%emt 0:00:03]} 3. g3 {[%emt 0:00:18]} c5 {[%emt 0:00:47]} 4. Bg2 {[%emt 0:00:34]} Nc6 {[%emt 0:00:10] LiveBook: 6815 Partien} 5. Nf3 {[%emt 0:04:27]} d6 {[%emt 0:00:26]} 6. O-O {[%emt 0:00:21]} Bf5 {[%emt 0:00:28]} 7. d3 {[%emt 0:06:42] A37: Symmetrical English vs ...g6: 4 Bg2 Bg7 5 Nf3} (7. h3 Qd7 8. Kh2 Nf6 9. d3 h6 10. e4 Be6 11. Be3 g5 12. Ng1 g4 13. h4 O-O 14. Nge2 Qd8 {0-1 (55) Caruana,F (2822)-So,W (2778) Stavanger 2018}) 7... Qd7 {[%emt 0:00:09]} 8. a3 {[%emt 0:06:31]} Bh3 {[%emt 0:00:49]} 9. Nd5 {[%emt 0:00:23]} Bxg2 {[%emt 0:00:38]} 10. Kxg2 {[%emt 0:00:03]} e6 {[%emt 0:01:32]} 11. Nc3 $146 {[%emt 0:03:25]} ({Predecessor:} 11. Nf4 Nge7 12. Rb1 a5 13. e4 O-O 14. h4 a4 {½-½ (61) Foisor,C (2386)-Malakhov,V (2605) Porto San Giorgio 2000}) 11... Nge7 {[%emt 0:01:57]} 12. Bd2 {[%emt 0:04:18]} O-O {[%emt 0:00:41]} 13. Rb1 {[%emt 0:01:42]} Rac8 {[%emt 0:15:20]} 14. b4 {[%emt 0:19:13]} b6 {[%emt 0:03:40]} 15. Qb3 {[%emt 0:07:32]} Nd4 {[%emt 0:05:53]} 16. Nxd4 {[%emt 0:00:20]} cxd4 {[%emt 0:00:10]} 17. Na4 {[%emt 0:03:41]} h6 {[%emt 0:06:44]} 18. Rfc1 {[%emt 0:02:13]} Kh7 {[%emt 0:04:02]} 19. c5 {[%emt 0:04:32]} b5 {[%emt 0:00:49]} 20. Nb2 {[%emt 0:00:07]} Nd5 {[%emt 0:05:07]} 21. Nd1 {[%emt 0:02:48]} a6 {[%emt 0:08:15]} 22. e3 {[%emt 0:07:48]} dxe3 {[%emt 0:04:04]} 23. Nxe3 {[%emt 0:00:31]} dxc5 {[%emt 0:02:12]} 24. Rxc5 {[%emt 0:03:10]} Ne7 {[%emt 0:05:16]} 25. Rd1 {[%emt 0:12:01]} Rfd8 {[%emt 0:03:20]} 26. Bc3 {[%emt 0:02:50]} Rxc5 {[%emt 0:01:58]} 27. bxc5 {[%emt 0:00:02]} Qc6+ {[%emt 0:00:14]} 28. Kg1 {[%emt 0:00:10]} Qxc5 {[%emt 0:00:08]} 29. Bxg7 {[%emt 0:00:33]} Kxg7 {[%emt 0:00:08]} 30. d4 {[%emt 0:00:41]} Rxd4 {[%emt 0:01:53]} 31. Qb2 {[%emt 0:00:06]} e5 {[%emt 0:00:07]} 32. Rc1 {[%emt 0:00:07]} Qd6 {[%emt 0:00:38]} 33. Qe2 {[%emt 0:01:05]} h5 {[%emt 0:00:37]} 34. Qb2 {[%emt 0:03:35]} Nd5 {[%emt 0:02:02]} 35. Nc2 {[%emt 0:01:04]} Rd2 $19 {[%emt 0:01:10]} 36. Re1 {[%emt 0:00:07]} Qf6 {[%emt 0:01:00]} 37. Qxe5 {[%emt 0:01:58]} Rxc2 {[%emt 0:00:11]} 0-1

[Event "WTCC-50 2018"]
[Site "Radebeul"]
[Date "2018.07.08"]
[Round "2"]
[White "Habel, Christof"]
[Black "Siegmund, Rainer"]
[Result "1-0"]
[ECO "A45"]
[WhiteElo "2026"]
[BlackElo "2114"]
[Annotator "NA"]
[PlyCount "105"]
[EventDate "2018.07.07"]
[EventType "team-tourn"]
[EventCountry "GER"]
[SourceTitle "playchess.com"]
[Source "ChessBase"]
[SourceQuality "1"]
[TimeControl "40/5400+30:1800+30"]

1. d4 {[%emt 0:00:00]} Nf6 {[%emt 0:00:00]} 2. g3 {[%emt 0:00:00]} d5 {[%emt 0:00:09]} 3. Bg2 {[%emt 0:00:49]} e6 {[%emt 0:00:53]} 4. c4 {[%emt 0:01:39]} Be7 {[%emt 0:00:50]} 5. Nc3 {[%emt 0:00:24]} O-O {[%emt 0:01:00]} 6. Nf3 {[%emt 0:02:11]} b6 {[%emt 0:03:47]} 7. Ne5 {[%emt 0:02:28]} Bb7 {[%emt 0:00:39]} 8. O-O {[%emt 0:00:49]} Nbd7 {[%emt 0:13:22]} 9. h3 {[%emt 0:09:21]} c6 {[%emt 0:03:18]} 10. e4 {[%emt 0:06:33]} Nxe5 {[%emt 0:15:15]} 11. dxe5 {[%emt 0:00:52]} Nxe4 {[%emt 0:00:35]} 12. Nxe4 {[%emt 0:06:09]} dxe4 {[%emt 0:00:09]} 13. Qg4 {[%emt 0:00:15]} Qc7 {[%emt 0:03:45]} 14. Qxe4 {[%emt 0:02:21]} Rad8 {[%emt 0:07:00]} 15. Be3 {[%emt 0:05:49]} Rd7 {[%emt 0:09:26]} 16. Rad1 {[%emt 0:01:47]} Rfd8 {[%emt 0:01:30]} 17. Rxd7 {[%emt 0:05:03]} Rxd7 {[%emt 0:01:00]} 18. f4 {[%emt 0:01:11]} c5 {[%emt 0:06:01]} 19. Qxb7 {[%emt 0:06:13]} Qxb7 {[%emt 0:00:04]} 20. Bxb7 {[%emt 0:00:07]} Rxb7 {[%emt 0:00:16]} 21. Rd1 {[%emt 0:00:04]} Kf8 {[%emt 0:00:51]} 22. a4 {[%emt 0:07:27]} Ke8 {[%emt 0:02:15]} 23. Kf2 {[%emt 0:02:10]} Rd7 {[%emt 0:01:18]} 24. Rxd7 {[%emt 0:08:47]} Kxd7 {[%emt 0:00:21]} 25. Kf3 {[%emt 0:00:02]} f5 {[%emt 0:10:42]} 26. exf6 {[%emt 0:03:57]} gxf6 {[%emt 0:02:34]} 27. Bd2 {[%emt 0:03:12]} f5 {[%emt 0:02:18]} 28. g4 {[%emt 0:04:31]} Bf6 {[%emt 0:01:06]} 29. b3 {[%emt 0:01:15]} Bd4 {[%emt 0:02:44]} 30. g5 {[%emt 0:02:02]} Ke7 {[%emt 0:02:39]} 31. h4 {[%emt 0:00:36]} Kf7 {[%emt 0:00:30]} 32. h5 {[%emt 0:00:51]} a5 {[%emt 0:00:39]} 33. Be1 {[%emt 0:00:31]} Kg7 {[%emt 0:04:14]} 34. Bh4 {[%emt 0:01:39]} Bc3 {[%emt 0:01:06]} 35. Ke3 {[%emt 0:04:51]} Kf7 {[%emt 0:02:07]} 36. Kd3 {[%emt 0:00:10]} Bb4 {[%emt 0:00:40]} 37. Bf2 {[%emt 0:00:35]} Kg7 {[%emt 0:00:32]} 38. Be3 {[%emt 0:00:37]} Be1 {[%emt 0:01:30]} 39. Bc1 {[%emt 0:00:11]} Bg3 {[%emt 0:01:23]} 40. Bb2+ {[%emt 0:00:47]} Kf7 {[%emt 0:00:12]} 41. Be5 {[%emt 0:30:36]} Be1 {[%emt 0:30:12]} 42. Bc7 {[%emt 0:01:18]} Bb4 {[%emt 0:00:00]} 43. Bxb6 {[%emt 0:00:00]} Kg7 {[%emt 0:00:00]} 44. Bc7 {[%emt 0:00:00]} Kf7 {[%emt 0:00:00]} 45. Be5 {[%emt 0:00:00]} Be1 {[%emt 0:00:00]} 46. Bb2 {[%emt 0:00:00]} Bb4 {[%emt 0:00:00]} 47. Bc1 {[%emt 0:00:00]} Be1 {[%emt 0:00:00]} 48. Be3 {[%emt 0:00:00]} Bb4 {[%emt 0:00:00]} 49. Kc2 {[%emt 0:00:00]} Kg7 {[%emt 0:00:00]} 50. Bd2 {[%emt 0:00:00]} Bxd2 {[%emt 0:00:00]} 51. Kxd2 {[%emt 0:00:00]} Kf7 {[%emt 0:00:00]} 52. b4 {[%emt 0:00:00]} cxb4 {[%emt 0:00:00]} 53. c5 1-0